{"text_format":"1","workbook":"xlsx","n_sheets":1,"sheets":["Presupuesto Proyecto Bb"],"not_rendered":{"charts":0,"images":2,"macros":1,"external_links":0,"defined_names":6,"comments":1,"pivot_tables":0},"unopened":[],"bounds":{"document_bytes":16777216,"sheet_cells":100000,"rows_first":2000,"rows_last":500,"rows_between":2000,"halvings":0,"cell_chars":16384,"cell_head_chars":4096},"cells_cut":0,"cells_raw":0,"read":"whole","date_system":"1900"}

{"sheet":"Presupuesto Proyecto Bb","index":0,"n_rows":148,"n_cols":4,"rows_kept":148,"cut":false,"hidden":false,"merged":[[146,0,146,3],[147,0,147,3],[126,0,126,3],[127,0,127,3],[128,0,128,3],[129,0,129,3],[130,0,130,3],[133,0,133,3],[134,0,134,3],[135,0,135,3],[136,0,136,3],[0,2,0,3],[1,2,1,3],[5,2,5,3],[6,2,6,3],[2,1,4,3],[122,2,124,3],[17,0,17,3],[142,0,142,3],[143,0,143,3],[145,0,145,3],[144,0,144,3],[137,0,137,3],[138,0,138,3],[139,0,139,3],[140,0,140,3],[141,0,141,3],[131,0,131,3],[132,0,132,3]]}
[null,null,"Documento básico 3"]
[null,null,"Ámbito temático \"B\": Intercooperación"]
["Programa de subvenciones 2021 de l'Ajuntament de Barcelona para","Modalidat Bb: Creación, desarrollo y refuerzo de ecosistemas cooperativos y clústers de ESS"]
["el Refuerzo y reactivación de la Economía Social y Solidaria y el"]
["desarrollo de proyectos que ejecutan la Estrategia ESS 2030 BCN"]
[null,null,"Sólo cumplimentar las celdas en blanco y si hace falta añadir las filas necesarias"]
[null,null,"Antes de cumplimentar, consultar todas las anotaciones a pie de página"]
[]
["DATOS BÁSICOS"]
["Nombre de la organización"]
["CIF de la organización"]
["Título del proyecto subvencionable"]
["Importe total del proyecto subvencionable"]
["Importe imputable a la subvención municipal"]
["Importe de la aportación / Cofinanciación de la organización",{"$f":"$B$13-$B$14","v":0}]
["% del importe solicitado respecto importe total del proyecto subvencionable",{"$f":"B14/B13","v":{"$error":"#DIV/0!"}}]
[]
["PREVISIÓN DE GASTOS DEL PROYECTO SUBVENCIONABLE PARA LA SUBMODALIDAD Bb1 Y Bb2"]
[]
["Partidas","Importe imputable a la subvención municipal","Importe de la aportación / Cofinanciación de la organización","Importe total del proyecto"]
["D1a.  - Nóminas y seguridad social (régimen general o régimen de autónomos) del personal propio vinculado al proyecto\n\n",{"$f":"SUM(B22:B24)","v":0},{"$f":"SUM(C22:C24)","v":0},{"$f":"SUM(DespesesProjecte[[#This Row],[Importe imputable a la subvención municipal]],DespesesProjecte[[#This Row],[Importe de la aportación / Cofinanciación de la organización]])","v":0}]
[null,null,null,{"$f":"SUM(DespesesProjecte[[#This Row],[Importe imputable a la subvención municipal]],DespesesProjecte[[#This Row],[Importe de la aportación / Cofinanciación de la organización]])","v":0}]
[null,null,null,{"$f":"SUM(DespesesProjecte[[#This Row],[Importe imputable a la subvención municipal]],DespesesProjecte[[#This Row],[Importe de la aportación / Cofinanciación de la organización]])","v":0}]
[null,null,null,{"$f":"SUM(DespesesProjecte[[#This Row],[Importe imputable a la subvención municipal]],DespesesProjecte[[#This Row],[Importe de la aportación / Cofinanciación de la organización]])","v":0}]
["D1b.  - Nóminas y seguridad social (régimen general o régimen de autónomos) del personal de nueva contratación asignado al proyecto\n\n",{"$f":"SUM(B26:B28)","v":0},{"$f":"SUM(C26:C28)","v":0},{"$f":"SUM(DespesesProjecte[[#This Row],[Importe imputable a la subvención municipal]],DespesesProjecte[[#This Row],[Importe de la aportación / Cofinanciación de la organización]])","v":0}]
[null,null,null,{"$f":"SUM(DespesesProjecte[[#This Row],[Importe imputable a la subvención municipal]],DespesesProjecte[[#This Row],[Importe de la aportación / Cofinanciación de la organización]])","v":0}]
[null,null,null,{"$f":"SUM(DespesesProjecte[[#This Row],[Importe imputable a la subvención municipal]],DespesesProjecte[[#This Row],[Importe de la aportación / Cofinanciación de la organización]])","v":0}]
[null,null,null,{"$f":"SUM(DespesesProjecte[[#This Row],[Importe imputable a la subvención municipal]],DespesesProjecte[[#This Row],[Importe de la aportación / Cofinanciación de la organización]])","v":0}]
["TOTAL DE GASTOS DEL PERSONAL\n\n\nMax 30% del importe imputable a la subvención municipal si se trata de personal propio con antigüedad anterior a la fecha de inicio al proyecto\n\nMax 50% del importe imputable a la subvención municipal si se trata de personal de nueva contratación asignado al proyecto\n\n",{"$f":"SUM(B21,B25)","v":0},{"$f":"SUM(C21,C25)","v":0},{"$f":"SUM(D21,D25)","v":0}]
["D2.  Trabajos realizados por profesionales y empresas externas directamente vinculadas al proyecto subvencionable\n\n",{"$f":"SUM(B31:B33)","v":0},{"$f":"SUM(C31:C33)","v":0},{"$f":"SUM(DespesesProjecte[[#This Row],[Importe imputable a la subvención municipal]],DespesesProjecte[[#This Row],[Importe de la aportación / Cofinanciación de la organización]])","v":0}]
[null,null,null,{"$f":"SUM(DespesesProjecte[[#This Row],[Importe imputable a la subvención municipal]],DespesesProjecte[[#This Row],[Importe de la aportación / Cofinanciación de la organización]])","v":0}]
[null,null,null,{"$f":"SUM(DespesesProjecte[[#This Row],[Importe imputable a la subvención municipal]],DespesesProjecte[[#This Row],[Importe de la aportación / Cofinanciación de la organización]])","v":0}]
[null,null,null,{"$f":"SUM(DespesesProjecte[[#This Row],[Importe imputable a la subvención municipal]],DespesesProjecte[[#This Row],[Importe de la aportación / Cofinanciación de la organización]])","v":0}]
["D3. Alquiler de bienes muebles / inmuebles directamente vinculados al proyecto subvencionable. Max 25% del importe imputable a la subvención municipal si se trata de un nuevo espacio físico necesario para el desarrollo del proyecto subvencionable\n\n",{"$f":"SUM(B35:B37)","v":0},{"$f":"SUM(C35:C37)","v":0},{"$f":"SUM(DespesesProjecte[[#This Row],[Importe imputable a la subvención municipal]],DespesesProjecte[[#This Row],[Importe de la aportación / Cofinanciación de la organización]])","v":0}]
[null,null,null,{"$f":"SUM(DespesesProjecte[[#This Row],[Importe imputable a la subvención municipal]],DespesesProjecte[[#This Row],[Importe de la aportación / Cofinanciación de la organización]])","v":0}]
[null,null,null,{"$f":"SUM(DespesesProjecte[[#This Row],[Importe imputable a la subvención municipal]],DespesesProjecte[[#This Row],[Importe de la aportación / Cofinanciación de la organización]])","v":0}]
[null,null,null,{"$f":"SUM(DespesesProjecte[[#This Row],[Importe imputable a la subvención municipal]],DespesesProjecte[[#This Row],[Importe de la aportación / Cofinanciación de la organización]])","v":0}]
["D4. Adquisición de materiales y bienes consumibles íntegramente imputables al proyecto subvencionable\n\n",{"$f":"SUM(B39:B41)","v":0},{"$f":"SUM(C39:C41)","v":0},{"$f":"SUM(DespesesProjecte[[#This Row],[Importe imputable a la subvención municipal]],DespesesProjecte[[#This Row],[Importe de la aportación / Cofinanciación de la organización]])","v":0}]
[null,null,null,{"$f":"SUM(DespesesProjecte[[#This Row],[Importe imputable a la subvención municipal]],DespesesProjecte[[#This Row],[Importe de la aportación / Cofinanciación de la organización]])","v":0}]
[null,null,null,{"$f":"SUM(DespesesProjecte[[#This Row],[Importe imputable a la subvención municipal]],DespesesProjecte[[#This Row],[Importe de la aportación / Cofinanciación de la organización]])","v":0}]
[null,null,null,{"$f":"SUM(DespesesProjecte[[#This Row],[Importe imputable a la subvención municipal]],DespesesProjecte[[#This Row],[Importe de la aportación / Cofinanciación de la organización]])","v":0}]
["D5.  Transporte - mensajería imputables al proyecto subvencionable\n\n",{"$f":"SUM(B43:B45)","v":0},{"$f":"SUM(C43:C45)","v":0},{"$f":"DespesesProjecte[[#This Row],[Importe imputable a la subvención municipal]]+DespesesProjecte[[#This Row],[Importe de la aportación / Cofinanciación de la organización]]","v":0}]
[null,null,null,{"$f":"SUM(DespesesProjecte[[#This Row],[Importe imputable a la subvención municipal]],DespesesProjecte[[#This Row],[Importe de la aportación / Cofinanciación de la organización]])","v":0}]
[null,null,null,{"$f":"SUM(DespesesProjecte[[#This Row],[Importe imputable a la subvención municipal]],DespesesProjecte[[#This Row],[Importe de la aportación / Cofinanciación de la organización]])","v":0}]
[null,null,null,{"$f":"SUM(DespesesProjecte[[#This Row],[Importe imputable a la subvención municipal]],DespesesProjecte[[#This Row],[Importe de la aportación / Cofinanciación de la organización]])","v":0}]
["D6.  Publicidad y propaganda de las actividades directamente vinculadas al proyecto subvencionable\n\n",{"$f":"SUM(B47:B49)","v":0},{"$f":"SUM(C47:C49)","v":0},{"$f":"SUM(DespesesProjecte[[#This Row],[Importe imputable a la subvención municipal]],DespesesProjecte[[#This Row],[Importe de la aportación / Cofinanciación de la organización]])","v":0}]
[null,null,null,{"$f":"SUM(DespesesProjecte[[#This Row],[Importe imputable a la subvención municipal]],DespesesProjecte[[#This Row],[Importe de la aportación / Cofinanciación de la organización]])","v":0}]
[null,null,null,{"$f":"SUM(DespesesProjecte[[#This Row],[Importe imputable a la subvención municipal]],DespesesProjecte[[#This Row],[Importe de la aportación / Cofinanciación de la organización]])","v":0}]
[null,null,null,{"$f":"SUM(DespesesProjecte[[#This Row],[Importe imputable a la subvención municipal]],DespesesProjecte[[#This Row],[Importe de la aportación / Cofinanciación de la organización]])","v":0}]
["D7.  Alojamiento y dietas, del personal contratado y personas voluntarias imputables a las actividades del proyecto subvencionable\n\n",{"$f":"SUM(B51:B53)","v":0},{"$f":"SUM(C51:C53)","v":0},{"$f":"SUM(DespesesProjecte[[#This Row],[Importe imputable a la subvención municipal]],DespesesProjecte[[#This Row],[Importe de la aportación / Cofinanciación de la organización]])","v":0}]
[null,null,null,{"$f":"SUM(DespesesProjecte[[#This Row],[Importe imputable a la subvención municipal]],DespesesProjecte[[#This Row],[Importe de la aportación / Cofinanciación de la organización]])","v":0}]
[null,null,null,{"$f":"SUM(DespesesProjecte[[#This Row],[Importe imputable a la subvención municipal]],DespesesProjecte[[#This Row],[Importe de la aportación / Cofinanciación de la organización]])","v":0}]
[null,null,null,{"$f":"SUM(DespesesProjecte[[#This Row],[Importe imputable a la subvención municipal]],DespesesProjecte[[#This Row],[Importe de la aportación / Cofinanciación de la organización]])","v":0}]
["D8.  Ayudas al transporte para los / las participantes de los proyectos en caso necesario de manera justificada",{"$f":"SUM(B55:B57)","v":0},{"$f":"SUM(C55:C57)","v":0},{"$f":"SUM(DespesesProjecte[[#This Row],[Importe imputable a la subvención municipal]],DespesesProjecte[[#This Row],[Importe de la aportación / Cofinanciación de la organización]])","v":0}]
[null,null,null,{"$f":"SUM(DespesesProjecte[[#This Row],[Importe imputable a la subvención municipal]],DespesesProjecte[[#This Row],[Importe de la aportación / Cofinanciación de la organización]])","v":0}]
[null,null,null,{"$f":"SUM(DespesesProjecte[[#This Row],[Importe imputable a la subvención municipal]],DespesesProjecte[[#This Row],[Importe de la aportación / Cofinanciación de la organización]])","v":0}]
[null,null,null,{"$f":"SUM(DespesesProjecte[[#This Row],[Importe imputable a la subvención municipal]],DespesesProjecte[[#This Row],[Importe de la aportación / Cofinanciación de la organización]])","v":0}]
["D9.  Viajes y desplazamientos imputables a las actividades del proyecto subvencionable\n\n",{"$f":"SUM(B59:B61)","v":0},{"$f":"SUM(C59:C61)","v":0},{"$f":"DespesesProjecte[[#This Row],[Importe imputable a la subvención municipal]]+DespesesProjecte[[#This Row],[Importe de la aportación / Cofinanciación de la organización]]","v":0}]
[null,null,null,{"$f":"SUM(DespesesProjecte[[#This Row],[Importe imputable a la subvención municipal]],DespesesProjecte[[#This Row],[Importe de la aportación / Cofinanciación de la organización]])","v":0}]
[null,null,null,{"$f":"SUM(DespesesProjecte[[#This Row],[Importe imputable a la subvención municipal]],DespesesProjecte[[#This Row],[Importe de la aportación / Cofinanciación de la organización]])","v":0}]
[null,null,null,{"$f":"SUM(DespesesProjecte[[#This Row],[Importe imputable a la subvención municipal]],DespesesProjecte[[#This Row],[Importe de la aportación / Cofinanciación de la organización]])","v":0}]
["D10.  Tributos, cuando sean abonados directamente por la persona jurídica o física beneficiaria\n\n",{"$f":"SUBTOTAL(109,B63:B65)","v":0},{"$f":"SUBTOTAL(109,C63:C65)","v":0},{"$f":"DespesesProjecte[[#This Row],[Importe imputable a la subvención municipal]]+DespesesProjecte[[#This Row],[Importe de la aportación / Cofinanciación de la organización]]","v":0}]
[null,null,null,{"$f":"SUM(DespesesProjecte[[#This Row],[Importe imputable a la subvención municipal]],DespesesProjecte[[#This Row],[Importe de la aportación / Cofinanciación de la organización]])","v":0}]
[null,null,null,{"$f":"SUM(DespesesProjecte[[#This Row],[Importe imputable a la subvención municipal]],DespesesProjecte[[#This Row],[Importe de la aportación / Cofinanciación de la organización]])","v":0}]
[null,null,null,{"$f":"SUM(DespesesProjecte[[#This Row],[Importe imputable a la subvención municipal]],DespesesProjecte[[#This Row],[Importe de la aportación / Cofinanciación de la organización]])","v":0}]
["D11. Gastos del informe de auditoría, cuando sea obligatoria su presentación por importe de la subvención",{"$f":"SUM(B67:B69)","v":0},{"$f":"SUM(C67:C69)","v":0},{"$f":"DespesesProjecte[[#This Row],[Importe de la aportación / Cofinanciación de la organización]]","v":0}]
[null,null,null,{"$f":"SUM(DespesesProjecte[[#This Row],[Importe imputable a la subvención municipal]],DespesesProjecte[[#This Row],[Importe de la aportación / Cofinanciación de la organización]])","v":0}]
[null,null,null,{"$f":"SUM(DespesesProjecte[[#This Row],[Importe imputable a la subvención municipal]],DespesesProjecte[[#This Row],[Importe de la aportación / Cofinanciación de la organización]])","v":0}]
[null,null,null,{"$f":"SUM(DespesesProjecte[[#This Row],[Importe imputable a la subvención municipal]],DespesesProjecte[[#This Row],[Importe de la aportación / Cofinanciación de la organización]])","v":0}]
["D12.  Otros gastos que de manera justificada y por la tipología del proyecto puedan imputarse directamente al proyecto subvencionable\n\n",{"$f":"SUM(B71:B73)","v":0},{"$f":"SUM(C71:C73)","v":0},{"$f":"SUM(DespesesProjecte[[#This Row],[Importe imputable a la subvención municipal]],DespesesProjecte[[#This Row],[Importe de la aportación / Cofinanciación de la organización]])","v":0}]
[null,null,null,{"$f":"SUM(DespesesProjecte[[#This Row],[Importe imputable a la subvención municipal]],DespesesProjecte[[#This Row],[Importe de la aportación / Cofinanciación de la organización]])","v":0}]
[null,null,null,{"$f":"SUM(DespesesProjecte[[#This Row],[Importe imputable a la subvención municipal]],DespesesProjecte[[#This Row],[Importe de la aportación / Cofinanciación de la organización]])","v":0}]
[null,null,null,{"$f":"SUM(DespesesProjecte[[#This Row],[Importe imputable a la subvención municipal]],DespesesProjecte[[#This Row],[Importe de la aportación / Cofinanciación de la organización]])","v":0}]
["TOTAL GASTOS DIRECTOS (aquellas que se identifican directamente con el proyecto subvencionable)\n\n",{"$f":"B21+B25+B30+B34+B38+B42+B46+B50+B54+B58+B62+B66+B70","v":0},{"$f":"C21+C25+C30+C34+C38+C42+C46+C50+C54+C58+C62+C66+C70","v":0},0]
["I1. Personal de apoyo al proyecto (nóminas y seguridad social)\n\n",{"$f":"SUM(B76:B78)","v":0},{"$f":"SUM(C76:C78)","v":0},{"$f":"SUM(DespesesProjecte[[#This Row],[Importe imputable a la subvención municipal]],DespesesProjecte[[#This Row],[Importe de la aportación / Cofinanciación de la organización]])","v":0}]
[null,null,null,{"$f":"SUM(DespesesProjecte[[#This Row],[Importe imputable a la subvención municipal]],DespesesProjecte[[#This Row],[Importe de la aportación / Cofinanciación de la organización]])","v":0}]
[null,null,null,{"$f":"SUM(DespesesProjecte[[#This Row],[Importe imputable a la subvención municipal]],DespesesProjecte[[#This Row],[Importe de la aportación / Cofinanciación de la organización]])","v":0}]
[null,null,null,{"$f":"SUM(DespesesProjecte[[#This Row],[Importe imputable a la subvención municipal]],DespesesProjecte[[#This Row],[Importe de la aportación / Cofinanciación de la organización]])","v":0}]
["I2.  Seguros",{"$f":"SUM(B80:B82)","v":0},{"$f":"SUM(C80:C82)","v":0},{"$f":"SUM(DespesesProjecte[[#This Row],[Importe imputable a la subvención municipal]],DespesesProjecte[[#This Row],[Importe de la aportación / Cofinanciación de la organización]])","v":0}]
[null,null,null,{"$f":"SUM(DespesesProjecte[[#This Row],[Importe imputable a la subvención municipal]],DespesesProjecte[[#This Row],[Importe de la aportación / Cofinanciación de la organización]])","v":0}]
[null,null,null,{"$f":"SUM(DespesesProjecte[[#This Row],[Importe imputable a la subvención municipal]],DespesesProjecte[[#This Row],[Importe de la aportación / Cofinanciación de la organización]])","v":0}]
[null,null,null,{"$f":"SUM(DespesesProjecte[[#This Row],[Importe imputable a la subvención municipal]],DespesesProjecte[[#This Row],[Importe de la aportación / Cofinanciación de la organización]])","v":0}]
["I3.  Amortización",{"$f":"SUM(B84:B86)","v":0},{"$f":"SUM(C84:C86)","v":0},{"$f":"SUM(DespesesProjecte[[#This Row],[Importe imputable a la subvención municipal]],DespesesProjecte[[#This Row],[Importe de la aportación / Cofinanciación de la organización]])","v":0}]
[null,null,null,{"$f":"SUM(DespesesProjecte[[#This Row],[Importe imputable a la subvención municipal]],DespesesProjecte[[#This Row],[Importe de la aportación / Cofinanciación de la organización]])","v":0}]
[null,null,null,{"$f":"SUM(DespesesProjecte[[#This Row],[Importe imputable a la subvención municipal]],DespesesProjecte[[#This Row],[Importe de la aportación / Cofinanciación de la organización]])","v":0}]
[null,null,null,{"$f":"SUM(DespesesProjecte[[#This Row],[Importe imputable a la subvención municipal]],DespesesProjecte[[#This Row],[Importe de la aportación / Cofinanciación de la organización]])","v":0}]
["I4.  Alquiler de bienes inmuebles\n\n",{"$f":"SUM(B88:B90)","v":0},{"$f":"SUM(C88:C90)","v":0},{"$f":"SUM(DespesesProjecte[[#This Row],[Importe imputable a la subvención municipal]],DespesesProjecte[[#This Row],[Importe de la aportación / Cofinanciación de la organización]])","v":0}]
[null,null,null,{"$f":"SUM(DespesesProjecte[[#This Row],[Importe imputable a la subvención municipal]],DespesesProjecte[[#This Row],[Importe de la aportación / Cofinanciación de la organización]])","v":0}]
[null,null,null,{"$f":"SUM(DespesesProjecte[[#This Row],[Importe imputable a la subvención municipal]],DespesesProjecte[[#This Row],[Importe de la aportación / Cofinanciación de la organización]])","v":0}]
[null,null,null,{"$f":"SUM(DespesesProjecte[[#This Row],[Importe imputable a la subvención municipal]],DespesesProjecte[[#This Row],[Importe de la aportación / Cofinanciación de la organización]])","v":0}]
["I5.  Adquisición de materiales y bienes consumibles parcialmente imputables al proyecto subvencionable\n\n",{"$f":"SUM(B92:B94)","v":0},{"$f":"SUM(C92:C94)","v":0},{"$f":"SUM(DespesesProjecte[[#This Row],[Importe imputable a la subvención municipal]],DespesesProjecte[[#This Row],[Importe de la aportación / Cofinanciación de la organización]])","v":0}]
[null,null,null,{"$f":"SUM(DespesesProjecte[[#This Row],[Importe imputable a la subvención municipal]],DespesesProjecte[[#This Row],[Importe de la aportación / Cofinanciación de la organización]])","v":0}]
[null,null,null,{"$f":"SUM(DespesesProjecte[[#This Row],[Importe imputable a la subvención municipal]],DespesesProjecte[[#This Row],[Importe de la aportación / Cofinanciación de la organización]])","v":0}]
[null,null,null,{"$f":"SUM(DespesesProjecte[[#This Row],[Importe imputable a la subvención municipal]],DespesesProjecte[[#This Row],[Importe de la aportación / Cofinanciación de la organización]])","v":0}]
["I6.  Mantenimiento de edificios y / o instalaciones\n\n",{"$f":"SUM(B96:B98)","v":0},{"$f":"SUM(C96:C98)","v":0},{"$f":"SUM(DespesesProjecte[[#This Row],[Importe imputable a la subvención municipal]],DespesesProjecte[[#This Row],[Importe de la aportación / Cofinanciación de la organización]])","v":0}]
[null,null,null,{"$f":"SUM(DespesesProjecte[[#This Row],[Importe imputable a la subvención municipal]],DespesesProjecte[[#This Row],[Importe de la aportación / Cofinanciación de la organización]])","v":0}]
[null,null,null,{"$f":"SUM(DespesesProjecte[[#This Row],[Importe imputable a la subvención municipal]],DespesesProjecte[[#This Row],[Importe de la aportación / Cofinanciación de la organización]])","v":0}]
[null,null,null,{"$f":"SUM(DespesesProjecte[[#This Row],[Importe imputable a la subvención municipal]],DespesesProjecte[[#This Row],[Importe de la aportación / Cofinanciación de la organización]])","v":0}]
["I7.  Comunicaciones (teléfono, correos, conexión a internet)\n\n",{"$f":"SUM(B100:B102)","v":0},{"$f":"SUM(C100:C102)","v":0},{"$f":"SUM(DespesesProjecte[[#This Row],[Importe imputable a la subvención municipal]],DespesesProjecte[[#This Row],[Importe de la aportación / Cofinanciación de la organización]])","v":0}]
[null,null,null,{"$f":"SUM(DespesesProjecte[[#This Row],[Importe imputable a la subvención municipal]],DespesesProjecte[[#This Row],[Importe de la aportación / Cofinanciación de la organización]])","v":0}]
[null,null,null,{"$f":"SUM(DespesesProjecte[[#This Row],[Importe imputable a la subvención municipal]],DespesesProjecte[[#This Row],[Importe de la aportación / Cofinanciación de la organización]])","v":0}]
[null,null,null,{"$f":"SUM(DespesesProjecte[[#This Row],[Importe imputable a la subvención municipal]],DespesesProjecte[[#This Row],[Importe de la aportación / Cofinanciación de la organización]])","v":0}]
["I8.  Gastos financieros\n\n",{"$f":"SUM(B104:B106)","v":0},{"$f":"SUM(C104:C106)","v":0},{"$f":"SUM(DespesesProjecte[[#This Row],[Importe imputable a la subvención municipal]],DespesesProjecte[[#This Row],[Importe de la aportación / Cofinanciación de la organización]])","v":0}]
[null,null,null,{"$f":"SUM(DespesesProjecte[[#This Row],[Importe imputable a la subvención municipal]],DespesesProjecte[[#This Row],[Importe de la aportación / Cofinanciación de la organización]])","v":0}]
[null,null,null,{"$f":"SUM(DespesesProjecte[[#This Row],[Importe imputable a la subvención municipal]],DespesesProjecte[[#This Row],[Importe de la aportación / Cofinanciación de la organización]])","v":0}]
[null,null,null,{"$f":"SUM(DespesesProjecte[[#This Row],[Importe imputable a la subvención municipal]],DespesesProjecte[[#This Row],[Importe de la aportación / Cofinanciación de la organización]])","v":0}]
["I9.  Suministros",{"$f":"SUM(B108:B110)","v":0},{"$f":"SUM(C108:C110)","v":0},{"$f":"SUM(DespesesProjecte[[#This Row],[Importe imputable a la subvención municipal]],DespesesProjecte[[#This Row],[Importe de la aportación / Cofinanciación de la organización]])","v":0}]
[null,null,null,{"$f":"SUM(DespesesProjecte[[#This Row],[Importe imputable a la subvención municipal]],DespesesProjecte[[#This Row],[Importe de la aportación / Cofinanciación de la organización]])","v":0}]
[null,null,null,{"$f":"SUM(DespesesProjecte[[#This Row],[Importe imputable a la subvención municipal]],DespesesProjecte[[#This Row],[Importe de la aportación / Cofinanciación de la organización]])","v":0}]
[null,null,null,{"$f":"SUM(DespesesProjecte[[#This Row],[Importe imputable a la subvención municipal]],DespesesProjecte[[#This Row],[Importe de la aportación / Cofinanciación de la organización]])","v":0}]
["I10.  Trabajo realizado por otras empresas, parcialmente imputables al proyecto subvencionable (limpieza, seguridad ...)\n\n",{"$f":"SUM(B112:B114)","v":0},{"$f":"SUM(C112:C114)","v":0},{"$f":"SUM(DespesesProjecte[[#This Row],[Importe imputable a la subvención municipal]],DespesesProjecte[[#This Row],[Importe de la aportación / Cofinanciación de la organización]])","v":0}]
[null,null,null,{"$f":"SUM(DespesesProjecte[[#This Row],[Importe imputable a la subvención municipal]],DespesesProjecte[[#This Row],[Importe de la aportación / Cofinanciación de la organización]])","v":0}]
[null,null,null,{"$f":"SUM(DespesesProjecte[[#This Row],[Importe imputable a la subvención municipal]],DespesesProjecte[[#This Row],[Importe de la aportación / Cofinanciación de la organización]])","v":0}]
[null,null,null,{"$f":"SUM(DespesesProjecte[[#This Row],[Importe imputable a la subvención municipal]],DespesesProjecte[[#This Row],[Importe de la aportación / Cofinanciación de la organización]])","v":0}]
["TOTAL GASTOS INDIRECTOS (se podrán asignar al proyecto subvencionable haciendo sevir un porcentaje de asignación) - Máximo 10% del importe imputable a la subvención municipal\n\n",{"$f":"SUM(B75,B79,B83,B87,B91,B95,B99,B103,B107,B111)","v":0},{"$f":"SUM(C75,C79,C83,C87,C91,C95,C99,C103,C107,C111)","v":0},{"$f":"SUM(D75,D79,D83,D87,D91,D95,D99,D103,D107,D111)","v":0}]
["TOTAL DE GASTOS PREVISTOS",{"$f":"SUM(B115,B74)","v":0},{"$f":"SUM(C115,C74)","v":0},{"$f":"SUM(D115,D74)","v":0}]
[]
["Atención: "]
["En caso de personas jurídicas no firme este documento ahora.\n\n"]
["Más adelante firmaréis digitalmente este documento\n\n"]
[]
["Atención: ","Fecha"]
["En caso de registro físico para las personas físicas\n\n","Firma"]
["Añada la fecha y la firma del representante legal de la organización aquí para que este documento tenga validez legal\n\n"]
["  "]
["Obervaciones de la modalidad Bb:"]
["1. La cuantía de la subvención otorgada no superará el 80% del gasto total del proyecto a subvencionar\n\n"]
["2.  El importe máximo de subvención para la submodalidad \"Bb1\" es de 18.000 € y por la submodalidad \"Bb2\" es de 50.000 €\n\n"]
["3.  En caso de que la solicitud presentada sobrepase el importe máximo, se considerará como importe solicitado el máximo de lo establecido en la convocatoria\n\n"]
["4. Se limita con un máximo del 50% del importe de la subvención para gastos de personal propio de nueva contratación asignado al proyecto subvencionado"]
["5. Se limita hasta un máximo del 30% del importe de la subvención para gastos de personal propio con antigüedad anterior a la fecha de inicio del proyecto subvencionado"]
["6. Los gastos de alquiler de inmuebles se limitan a un máximo del 25% si se trata de un nuevo espacio físico necesario para el desarrollo del proyecto subvencionable\n\n"]
["7. En el caso de alquileres de inmuebles no relacionados directamente con el desarrollo del proyecto los gastos de alquiler imputarán a los gastos indirectos con el límite establecido para estos gastos\n\n"]
["8. Los gastos indirectos imputados al proyecto, detalladas en el apartado 13.3. de las bases reguladoras, no podrán superar el 10% del importe de la subvención\n\n"]
["9.  El carácter subvencionable del gasto de amortización estará sujeto a las siguientes condiciones:"]
[";- Que las subvenciones no hayan contribuido a la compra de los bienes\n\n"]
[";- Que la amortización se calcule de conformidad con las normas de contabilidad generalmente aceptadas"]
[";-  Que el coste se refiera al período subvencionable"]
["10. Cuando se tenga que hacer gastos de más de 12.000 €, sin IVA, en el caso de prestaciones de servicios o entrega de bienes y por aquellos gastos de más de 30.000 €, sin IVA,\n\n"]
["    en el caso de ejecución de obras, deberán incorporar tres presupuestos solicitados y argumentar el motivo de la adjudicación en el caso de no ser la propuesta más ventajosa económicamente"]
["11. En ningún caso se considerarán gastos subvencionables:\n\n"]
["- Los impuestos indirectos cuando sean susceptibles de recuperación o compensación"]
["- Los gastos de inversión, incluidas las adquisiciones de bienes muebles"]
["- Los gastos realizados con fecha anterior al inicio del proyecto y fecha posterior a la finalización del proyecto"]
["- Otros gastos que se indiquen en la convocatoria\n\n"]
["12.  Para las subvenciones otorgadas por importe superior a 20.000 € es necesario un informe de auditoría para la justificación. El importe de este informe se considera gasto subvencionable, con un límite máximo de 1.500 €"]
["13. No serán elegibles facturas emitidas entre las organizaciones participantes del acuerdo de cooperación\n\n"]
["14. La retribución de las personas contratadas en el marco del proyecto subvencionado no podrá ser inferior al Salario Mínimo Interprofesional, ni a la estipulada en el correspondiente convenio o marco normativo de referencia\n\n"]